[Event "*** Titled Tuesday Blitz"]
[Site "Chess.com"]
[Date "2020.05.12"]
[Round "4"]
[White "TheCount"]
[Black "MateSchmate"]
[Result "1-0"]
[WhiteElo "2604"]
[BlackElo "2409"]
[TimeControl "180+1"]
[EndTime "10:38:33 PDT"]
[Termination "TheCount won by resignation"]

1. d4 {[%clk 0:02:59.9]} 1... c5 {[%clk 0:02:59.9]} 2. d5 {[%clk 0:02:52.7]}
2... e5 {[%clk 0:02:57.9]} 3. c4 {[%clk 0:02:36.8]} 3... d6 {[%clk 0:02:58.1]}
4. Nc3 {[%clk 0:02:36.7]} 4... g6 {[%clk 0:02:57.6]} 5. g3 {[%clk 0:02:35.8]}
5... Bg7 {[%clk 0:02:58]} 6. Bg2 {[%clk 0:02:36.4]} 6... Ne7 {[%clk 0:02:58.5]}
7. e4 {[%clk 0:02:09.8]} 7... O-O {[%clk 0:02:58]} 8. Nge2 {[%clk 0:02:08.5]}
8... f5 {[%clk 0:02:57.9]} 9. O-O {[%clk 0:02:07.7]} 9... Nd7 {[%clk 0:02:57.7]}
10. Be3 {[%clk 0:01:59.8]} 10... Nf6 {[%clk 0:02:55]} 11. h3 {[%clk 0:01:45.2]}
11... a6 {[%clk 0:02:53.9]} 12. a4 {[%clk 0:01:44.6]} 12... fxe4 {[%clk
0:02:48]} 13. Kh2 {[%clk 0:01:27.5]} 13... Nf5 {[%clk 0:02:40.3]} 14. Bg5 {[%clk
0:01:17.1]} 14... h6 {[%clk 0:02:25.5]} 15. Bxf6 {[%clk 0:01:06.8]} 15... Bxf6
{[%clk 0:02:26.4]} 16. Nxe4 {[%clk 0:01:06.7]} 16... Bg7 {[%clk 0:02:20.3]} 17.
Qd2 {[%clk 0:01:02.6]} 17... Qe7 {[%clk 0:02:13.9]} 18. Rae1 {[%clk 0:01:00.9]}
18... Bd7 {[%clk 0:02:12.6]} 19. f4 {[%clk 0:01:00.9]} 19... Bxa4 {[%clk
0:02:00.7]} 20. fxe5 {[%clk 0:00:53.9]} 20... Bxe5 {[%clk 0:02:00.5]} 21. Nf4
{[%clk 0:00:54.4]} 21... Kh7 {[%clk 0:01:47.1]} 22. Ne6 {[%clk 0:00:51]} 22...
Rg8 {[%clk 0:01:42.6]} 23. Kh1 {[%clk 0:00:32.1]} 23... Bd7 {[%clk 0:01:40.5]}
24. g4 {[%clk 0:00:32.3]} 24... Bxe6 {[%clk 0:01:37.6]} 25. dxe6 {[%clk
0:00:31.4]} 25... Raf8 {[%clk 0:01:13.8]} 26. gxf5 {[%clk 0:00:29.9]} 26... gxf5
{[%clk 0:01:14.7]} 27. Nxc5 {[%clk 0:00:27.7]} 27... Bg3 {[%clk 0:01:11.1]} 28.
Nd7 {[%clk 0:00:27.6]} 28... Bxe1 {[%clk 0:01:04]} 29. Nxf8+ {[%clk 0:00:26.8]}
29... Rxf8 {[%clk 0:01:03.6]} 30. Rxe1 {[%clk 0:00:26.4]} 30... f4 {[%clk
0:01:02.4]} 31. Qd5 {[%clk 0:00:23.4]} 31... Qh4 {[%clk 0:01:00.8]} 32. Qe4+
{[%clk 0:00:21.4]} 32... Kh8 {[%clk 0:00:58.6]} 33. e7 {[%clk 0:00:21.4]} 33...
Re8 {[%clk 0:00:59.2]} 34. Re2 {[%clk 0:00:20.5]} 34... Qf6 {[%clk 0:00:58.3]}
35. Qe6 {[%clk 0:00:19.8]} 35... Kg7 {[%clk 0:00:56.9]} 36. Qxf6+ {[%clk
0:00:18.7]} 36... Kxf6 {[%clk 0:00:57.8]} 37. Bxb7 {[%clk 0:00:18.9]} 37... a5
{[%clk 0:00:58.3]} 38. Bc6 {[%clk 0:00:18.1]} 38... Rxe7 {[%clk 0:00:58.7]} 39.
Rxe7 {[%clk 0:00:18.7]} 39... Kxe7 {[%clk 0:00:59.6]} 40. Kg2 {[%clk 0:00:19.2]}
40... Ke6 {[%clk 0:01:00.1]} 41. Kf3 {[%clk 0:00:19.2]} 41... Ke5 {[%clk
0:01:01]} 42. b3 {[%clk 0:00:17.1]} 42... Kf5 {[%clk 0:00:58]} 43. Bd7+ {[%clk
0:00:17.2]} 43... Ke5 {[%clk 0:00:55.2]} 44. Bc8 {[%clk 0:00:17.5]} 44... Kd4
{[%clk 0:00:53.7]} 45. Bd7 {[%clk 0:00:16.1]} 45... Ke5 {[%clk 0:00:52.7]} 46.
Bb5 {[%clk 0:00:14.7]} 46... Kf5 {[%clk 0:00:52.6]} 47. Bc6 {[%clk 0:00:15]}
47... Ke5 {[%clk 0:00:52.6]} 48. Bd7 {[%clk 0:00:15.5]} 48... h5 {[%clk
0:00:49.4]} 49. h4 {[%clk 0:00:15.6]} 49... Kd4 {[%clk 0:00:46.6]} 50. Kxf4
{[%clk 0:00:16]} 50... Kc3 {[%clk 0:00:46.7]} 51. Ba4 {[%clk 0:00:16.1]} 51...
Kb4 {[%clk 0:00:47]} 52. Kg5 {[%clk 0:00:16]} 52... Kc5 {[%clk 0:00:47.9]} 53.
Kxh5 {[%clk 0:00:16.2]} 53... d5 {[%clk 0:00:48.8]} 54. cxd5 {[%clk 0:00:16.9]}
54... Kxd5 {[%clk 0:00:49.7]} 55. Kg5 {[%clk 0:00:17.6]} 55... Ke6 {[%clk
0:00:50.3]} 56. Kg6 {[%clk 0:00:18.2]} 56... Ke7 {[%clk 0:00:50.4]} 57. Kg7
{[%clk 0:00:18.5]} 57... Ke6 {[%clk 0:00:50.7]} 58. h5 {[%clk 0:00:19.2]} 58...
Kf5 {[%clk 0:00:51.6]} 59. h6 {[%clk 0:00:19.8]} 1-0

[Event "*** Titled Tuesday Blitz"]
[Site "Chess.com"]
[Date "2020.05.12"]
[Round "4"]
[White "HanSchut"]
[Black "TheSodabread"]
[Result "1-0"]
[WhiteElo "2204"]
[BlackElo "1918"]
[TimeControl "180+1"]
[EndTime "10:38:33 PDT"]
[Termination "HanSchut won on time"]

1. e4 {[%clk 0:03:00.9]} 1... d6 {[%clk 0:02:59.2]} 2. d4 {[%clk 0:03:00.5]}
2... Nf6 {[%clk 0:02:59.1]} 3. Nc3 {[%clk 0:02:58.6]} 3... e5 {[%clk 0:02:57.6]}
4. Nf3 {[%clk 0:02:57.2]} 4... Nbd7 {[%clk 0:02:55.8]} 5. Bc4 {[%clk 0:02:55.6]}
5... Be7 {[%clk 0:02:53.4]} 6. a4 {[%clk 0:02:55.4]} 6... c6 {[%clk 0:02:50.4]}
7. a5 {[%clk 0:02:55.3]} 7... Qc7 {[%clk 0:02:37.1]} 8. Qe2 {[%clk 0:02:52.5]}
8... h6 {[%clk 0:02:30.8]} 9. Bb3 {[%clk 0:02:51.3]} 9... g5 {[%clk 0:02:26]}
10. Qc4 {[%clk 0:02:50.5]} 10... Rh7 {[%clk 0:01:55.3]} 11. Nd5 {[%clk
0:02:19.6]} 11... Nxd5 {[%clk 0:01:51.9]} 12. exd5 {[%clk 0:02:19.6]} 12... exd4
{[%clk 0:01:39.8]} 13. Nxd4 {[%clk 0:01:46.3]} 13... Ne5 {[%clk 0:01:38.9]} 14.
Qe2 {[%clk 0:01:38.9]} 14... c5 {[%clk 0:01:37.5]} 15. Qe4 {[%clk 0:01:04.1]}
15... Rh8 {[%clk 0:01:11.3]} 16. Nb5 {[%clk 0:00:49.4]} 16... Qd7 {[%clk
0:01:06.7]} 17. f4 {[%clk 0:00:47.9]} 17... f5 {[%clk 0:00:47.6]} 18. Qe2 {[%clk
0:00:45.3]} 18... Nf7 {[%clk 0:00:47.8]} 19. Ba4 {[%clk 0:00:38.7]} 19... Kf8
{[%clk 0:00:37.2]} 20. Nd4 {[%clk 0:00:38.1]} 20... Qd8 {[%clk 0:00:20.7]} 21.
Ne6+ {[%clk 0:00:37.6]} 21... Bxe6 {[%clk 0:00:19.5]} 22. dxe6 {[%clk
0:00:38.5]} 22... Qxa5+ {[%clk 0:00:15.4]} 23. Bd2 {[%clk 0:00:38.6]} 23... Qb6
{[%clk 0:00:14.3]} 24. exf7 {[%clk 0:00:38.4]} 24... Qxb2 {[%clk 0:00:14.9]} 25.
O-O {[%clk 0:00:33.5]} 25... Qd4+ {[%clk 0:00:14.5]} 26. Kh1 {[%clk 0:00:23.4]}
26... g4 {[%clk 0:00:14.5]} 27. Rae1 {[%clk 0:00:20.1]} 27... Qf6 {[%clk
0:00:14.2]} 28. Bc3 {[%clk 0:00:18.2]} 28... Qxf7 {[%clk 0:00:03]} 29. Bxh8
{[%clk 0:00:17.8]} 29... h5 {[%clk 0:00:03.9]} 30. Bb3 {[%clk 0:00:16.5]} 30...
Qe8 {[%clk 0:00:02.5]} 31. Qe6 {[%clk 0:00:15.4]} 1-0

[Event "*** Titled Tuesday Blitz"]
[Site "Chess.com"]
[Date "2020.05.12"]
[Round "4"]
[White "Trankuilizer"]
[Black "Robert_Chessmood"]
[Result "0-1"]
[WhiteElo "2552"]
[BlackElo "2951"]
[TimeControl "180+1"]
[EndTime "10:38:34 PDT"]
[Termination "Robert_Chessmood won by resignation"]

1. e4 {[%clk 0:02:55.3]} 1... e5 {[%clk 0:02:59.6]} 2. Nf3 {[%clk 0:02:55]} 2...
Nc6 {[%clk 0:03:00.2]} 3. Bc4 {[%clk 0:02:54.9]} 3... Bc5 {[%clk 0:02:59.8]} 4.
c3 {[%clk 0:02:54.8]} 4... Nf6 {[%clk 0:03:00.4]} 5. d3 {[%clk 0:02:55.2]} 5...
d6 {[%clk 0:03:00.3]} 6. Nbd2 {[%clk 0:02:55]} 6... a5 {[%clk 0:02:59.4]} 7. a4
{[%clk 0:02:54.5]} 7... O-O {[%clk 0:02:59.3]} 8. O-O {[%clk 0:02:54]} 8... Be6
{[%clk 0:02:59.9]} 9. h3 {[%clk 0:02:53.7]} 9... h6 {[%clk 0:02:54.7]} 10. Re1
{[%clk 0:02:53.9]} 10... Re8 {[%clk 0:02:53.3]} 11. Qb3 {[%clk 0:02:52.4]} 11...
Rb8 {[%clk 0:02:42.3]} 12. Nf1 {[%clk 0:02:51.6]} 12... Bxc4 {[%clk 0:02:39.6]}
13. Qxc4 {[%clk 0:02:51.1]} 13... Bb6 {[%clk 0:02:37]} 14. Be3 {[%clk
0:02:39.6]} 14... d5 {[%clk 0:02:33.7]} 15. exd5 {[%clk 0:02:39.8]} 15... Qxd5
{[%clk 0:02:34.5]} 16. Qb5 {[%clk 0:02:24.3]} 16... Bxe3 {[%clk 0:02:11.5]} 17.
Nxe3 {[%clk 0:02:22.8]} 17... Qd7 {[%clk 0:02:06.7]} 18. Rad1 {[%clk 0:02:18.8]}
18... Re6 {[%clk 0:01:55.6]} 19. Nc4 {[%clk 0:02:16.4]} 19... Qe8 {[%clk
0:01:41.7]} 20. Ncxe5 {[%clk 0:02:11.8]} 20... Nxe5 {[%clk 0:01:38.6]} 21. Rxe5
{[%clk 0:02:05.6]} 21... Rxe5 {[%clk 0:01:27.6]} 22. Qxe5 {[%clk 0:01:47.4]}
22... Qxa4 {[%clk 0:01:24.9]} 23. Re1 {[%clk 0:01:35.5]} 23... Rc8 {[%clk
0:01:14]} 24. d4 {[%clk 0:01:31]} 24... b6 {[%clk 0:01:10.2]} 25. Qf5 {[%clk
0:01:29.7]} 25... Qd7 {[%clk 0:01:04.9]} 26. Qxd7 {[%clk 0:01:29.1]} 26... Nxd7
{[%clk 0:01:05.8]} 27. Re7 {[%clk 0:01:29]} 27... Rd8 {[%clk 0:01:06.1]} 28. Kf1
{[%clk 0:01:05.4]} 28... Kf8 {[%clk 0:01:05.8]} 29. Re3 {[%clk 0:01:05.8]} 29...
a4 {[%clk 0:00:57.2]} 30. Ke2 {[%clk 0:01:05.6]} 30... b5 {[%clk 0:00:53.5]} 31.
Kd3 {[%clk 0:00:57.6]} 31... Nb6 {[%clk 0:00:47.8]} 32. Ne5 {[%clk 0:00:54.9]}
32... f6 {[%clk 0:00:46.3]} 33. Nc6 {[%clk 0:00:54.7]} 33... Rd6 {[%clk
0:00:42.6]} 34. Na5 {[%clk 0:00:45.4]} 34... Nd5 {[%clk 0:00:36.4]} 35. Re4
{[%clk 0:00:39.7]} 35... Ra6 {[%clk 0:00:23.6]} 36. Nc6 {[%clk 0:00:10.3]} 36...
Rxc6 {[%clk 0:00:22.6]} 0-1

[Event "*** Titled Tuesday Blitz"]
[Site "Chess.com"]
[Date "2020.05.12"]
[Round "4"]
[White "WhiteCapital80"]
[Black "allvim"]
[Result "1-0"]
[WhiteElo "2451"]
[BlackElo "2277"]
[TimeControl "180+1"]
[EndTime "10:38:34 PDT"]
[Termination "WhiteCapital80 won by resignation"]

1. e4 {[%clk 0:03:00.9]} 1... c5 {[%clk 0:02:59.7]} 2. Nf3 {[%clk 0:03:00.4]}
2... d6 {[%clk 0:03:00.2]} 3. d4 {[%clk 0:03:00.7]} 3... cxd4 {[%clk 0:03:01.1]}
4. Nxd4 {[%clk 0:03:01]} 4... Nf6 {[%clk 0:03:01.8]} 5. Nc3 {[%clk 0:03:01]}
5... a6 {[%clk 0:03:02.4]} 6. Be2 {[%clk 0:03:01]} 6... e5 {[%clk 0:03:02.2]} 7.
Nb3 {[%clk 0:03:01.1]} 7... Be6 {[%clk 0:03:02.5]} 8. O-O {[%clk 0:03:00.6]}
8... Be7 {[%clk 0:03:02.9]} 9. f4 {[%clk 0:03:00.9]} 9... exf4 {[%clk
0:03:03.8]} 10. Bxf4 {[%clk 0:03:00.6]} 10... Nc6 {[%clk 0:03:04.4]} 11. Kh1
{[%clk 0:02:59.5]} 11... O-O {[%clk 0:03:04.6]} 12. Qe1 {[%clk 0:02:59.6]} 12...
Ne5 {[%clk 0:02:48.7]} 13. Rd1 {[%clk 0:02:56.1]} 13... Qc7 {[%clk 0:02:48.3]}
14. Nd4 {[%clk 0:02:54.6]} 14... Ng6 {[%clk 0:02:43]} 15. Bg5 {[%clk 0:02:53.7]}
15... Rac8 {[%clk 0:02:38.4]} 16. Qg3 {[%clk 0:02:52]} 16... d5 {[%clk
0:01:50.9]} 17. Qxc7 {[%clk 0:02:27.1]} 17... Rxc7 {[%clk 0:01:51.8]} 18. exd5
{[%clk 0:02:19.9]} 18... Nxd5 {[%clk 0:01:45.5]} 19. Nxe6 {[%clk 0:02:17.3]}
19... fxe6 {[%clk 0:01:36.4]} 20. Nxd5 {[%clk 0:02:05.4]} 20... exd5 {[%clk
0:01:04.1]} 21. Bxe7 {[%clk 0:02:03.6]} 21... Rxf1+ {[%clk 0:00:47.8]} 22. Rxf1
{[%clk 0:01:56.2]} 22... Nxe7 {[%clk 0:00:47.8]} 23. c3 {[%clk 0:01:55.7]} 23...
Nc6 {[%clk 0:00:45.7]} 24. Bf3 {[%clk 0:01:54.1]} 24... Rd7 {[%clk 0:00:34.1]}
25. Rd1 {[%clk 0:01:51.3]} 25... Ne7 {[%clk 0:00:10]} 26. Kg1 {[%clk 0:01:50.3]}
26... Kf7 {[%clk 0:00:10]} 27. Kf2 {[%clk 0:01:50.5]} 27... b5 {[%clk
0:00:06.9]} 28. Ke3 {[%clk 0:01:48.4]} 28... Nf5+ {[%clk 0:00:06.8]} 29. Kf4
{[%clk 0:01:47.5]} 29... Ne7 {[%clk 0:00:03.6]} 30. Ke5 {[%clk 0:01:45.8]} 30...
Nc6+ {[%clk 0:00:04]} 31. Kf4 {[%clk 0:01:44.8]} 31... Ne7 {[%clk 0:00:04.5]}
32. Rd4 {[%clk 0:01:36.1]} 32... Rd6 {[%clk 0:00:04.7]} 33. a4 {[%clk
0:01:31.5]} 33... h6 {[%clk 0:00:04.1]} 34. h4 {[%clk 0:01:28.7]} 34... g5+
{[%clk 0:00:05]} 35. hxg5 {[%clk 0:01:28]} 35... hxg5+ {[%clk 0:00:05.9]} 36.
Kxg5 {[%clk 0:01:24.9]} 36... Rg6+ {[%clk 0:00:06.1]} 37. Kh5 {[%clk 0:01:22.3]}
37... Rf6 {[%clk 0:00:04.5]} 38. axb5 {[%clk 0:01:18.2]} 38... axb5 {[%clk
0:00:04.4]} 39. Bxd5+ {[%clk 0:01:15.8]} 39... Kg7 {[%clk 0:00:03.1]} 40. Be4
{[%clk 0:01:13]} 40... Rh6+ {[%clk 0:00:02.8]} 41. Kg5 {[%clk 0:01:12.1]} 41...
Re6 {[%clk 0:00:02.7]} 42. Kf4 {[%clk 0:01:09.1]} 42... Rf6+ {[%clk 0:00:01.8]}
43. Ke5 {[%clk 0:01:08.3]} 43... Rf1 {[%clk 0:00:02.7]} 44. Rd7 {[%clk
0:01:06.7]} 44... Kf8 {[%clk 0:00:02.6]} 45. Rb7 {[%clk 0:01:03.4]} 45... Re1
{[%clk 0:00:02.7]} 46. Rxb5 {[%clk 0:01:01.9]} 46... Re2 {[%clk 0:00:01.8]} 47.
Kf6 {[%clk 0:00:57.6]} 47... Nc6 {[%clk 0:00:01.1]} 1-0

[Event "*** Titled Tuesday Blitz"]
[Site "Chess.com"]
[Date "2020.05.12"]
[Round "4"]
[White "CzechmVIII"]
[Black "witcher8"]
[Result "1/2-1/2"]
[WhiteElo "2249"]
[BlackElo "2420"]
[TimeControl "180+1"]
[EndTime "10:38:34 PDT"]
[Termination "Game drawn by repetition"]

1. e4 {[%clk 0:03:00.9]} 1... c6 {[%clk 0:02:59.8]} 2. d4 {[%clk 0:03:00.1]}
2... d5 {[%clk 0:03:00.7]} 3. e5 {[%clk 0:03:00.4]} 3... Bf5 {[%clk 0:02:57.9]}
4. Nc3 {[%clk 0:02:59.8]} 4... e6 {[%clk 0:02:56]} 5. g4 {[%clk 0:02:59.7]} 5...
Bg6 {[%clk 0:02:55.9]} 6. Nge2 {[%clk 0:03:00.2]} 6... c5 {[%clk 0:02:53.3]} 7.
h4 {[%clk 0:02:59.9]} 7... h5 {[%clk 0:02:52.5]} 8. Nf4 {[%clk 0:02:59.4]} 8...
Nc6 {[%clk 0:02:52.7]} 9. Nxg6 {[%clk 0:02:53.8]} 9... fxg6 {[%clk 0:02:53.6]}
10. Ne2 {[%clk 0:02:52]} 10... Qb6 {[%clk 0:02:42.8]} 11. Bh3 {[%clk 0:02:36.9]}
11... Nxd4 {[%clk 0:02:13.2]} 12. Nf4 {[%clk 0:02:04.4]} 12... hxg4 {[%clk
0:01:56]} 13. Bxg4 {[%clk 0:02:01.3]} 13... Nh6 {[%clk 0:01:52.5]} 14. c3 {[%clk
0:01:16.8]} 14... Ndf5 {[%clk 0:01:40.6]} 15. Nxg6 {[%clk 0:01:09.9]} 15... Rg8
{[%clk 0:01:26.6]} 16. Bxf5 {[%clk 0:00:53.2]} 16... Nxf5 {[%clk 0:01:24.2]} 17.
Qa4+ {[%clk 0:00:50.2]} 17... Qc6 {[%clk 0:00:57.5]} 18. Qxc6+ {[%clk 0:00:49]}
18... bxc6 {[%clk 0:00:38.1]} 19. Bg5 {[%clk 0:00:44.1]} 19... Kf7 {[%clk
0:00:35.8]} 20. h5 {[%clk 0:00:34.4]} 20... Rb8 {[%clk 0:00:35.4]} 21. O-O-O
{[%clk 0:00:33]} 21... c4 {[%clk 0:00:34.4]} 22. Nxf8 {[%clk 0:00:32.5]} 22...
Rgxf8 {[%clk 0:00:33.2]} 23. h6 {[%clk 0:00:28.7]} 23... gxh6 {[%clk 0:00:31.8]}
24. Bxh6 {[%clk 0:00:28.6]} 24... Rh8 {[%clk 0:00:30.4]} 25. Bg5 {[%clk
0:00:24.9]} 25... Rxh1 {[%clk 0:00:09.9]} 26. Rxh1 {[%clk 0:00:24.7]} 26... Rg8
{[%clk 0:00:10.4]} 27. Bf6 {[%clk 0:00:24]} 27... Rg2 {[%clk 0:00:05]} 28. Rh7+
{[%clk 0:00:22.9]} 28... Kg6 {[%clk 0:00:05.3]} 29. Rxa7 {[%clk 0:00:21.2]}
29... Rxf2 {[%clk 0:00:05.9]} 30. Rc7 {[%clk 0:00:20.5]} 30... Rf1+ {[%clk
0:00:02.5]} 31. Kd2 {[%clk 0:00:19]} 31... Rf2+ {[%clk 0:00:03.4]} 32. Kc1
{[%clk 0:00:19.2]} 32... Rf1+ {[%clk 0:00:03.8]} 33. Kd2 {[%clk 0:00:19.6]}
33... Rf2+ {[%clk 0:00:04.1]} 34. Kc1 {[%clk 0:00:18]} 1/2-1/2

[Event "*** Titled Tuesday Blitz"]
[Site "Chess.com"]
[Date "2020.05.12"]
[Round "4"]
[White "MoreChessJulia"]
[Black "GMaka"]
[Result "0-1"]
[WhiteElo "1788"]
[BlackElo "2359"]
[TimeControl "180+1"]
[EndTime "10:38:35 PDT"]
[Termination "GMaka won by checkmate"]

1. d4 {[%clk 0:02:58.4]} 1... Nf6 {[%clk 0:02:59.9]} 2. c4 {[%clk 0:02:58.1]}
2... Nc6 {[%clk 0:03:00.3]} 3. d5 {[%clk 0:02:57.3]} 3... Ne5 {[%clk 0:03:00]}
4. e4 {[%clk 0:02:56.5]} 4... Ng6 {[%clk 0:02:54.2]} 5. Nc3 {[%clk 0:02:55.2]}
5... e5 {[%clk 0:02:54.3]} 6. a3 {[%clk 0:02:51.5]} 6... a5 {[%clk 0:02:52.2]}
7. f3 {[%clk 0:02:48.7]} 7... Bc5 {[%clk 0:02:51.5]} 8. Rb1 {[%clk 0:02:43.3]}
8... Nh5 {[%clk 0:02:41.5]} 9. Nge2 {[%clk 0:02:42.8]} 9... Nhf4 {[%clk
0:02:34.3]} 10. g3 {[%clk 0:02:40.5]} 10... Nxe2 {[%clk 0:02:25.6]} 11. Bxe2
{[%clk 0:02:37]} 11... d6 {[%clk 0:02:24.9]} 12. h4 {[%clk 0:02:36]} 12... h6
{[%clk 0:02:08.7]} 13. b4 {[%clk 0:02:34.2]} 13... axb4 {[%clk 0:02:08]} 14.
axb4 {[%clk 0:02:33.6]} 14... Bd4 {[%clk 0:01:54.5]} 15. Qc2 {[%clk 0:02:31.1]}
15... Bd7 {[%clk 0:01:50.4]} 16. h5 {[%clk 0:02:27.5]} 16... Nf8 {[%clk
0:01:42.3]} 17. g4 {[%clk 0:02:27]} 17... Nh7 {[%clk 0:01:40.5]} 18. Bd3 {[%clk
0:02:12.1]} 18... O-O {[%clk 0:01:35.4]} 19. Ne2 {[%clk 0:02:10.1]} 19... c5
{[%clk 0:00:56.2]} 20. dxc6 {[%clk 0:02:05.6]} 20... bxc6 {[%clk 0:00:57.1]} 21.
Nxd4 {[%clk 0:02:05.2]} 21... exd4 {[%clk 0:00:58]} 22. Bf4 {[%clk 0:02:04]}
22... Be6 {[%clk 0:00:52.9]} 23. Kf2 {[%clk 0:02:02.4]} 23... Ng5 {[%clk
0:00:49.9]} 24. Kg3 {[%clk 0:02:02.2]} 24... Qe7 {[%clk 0:00:31.8]} 25. b5
{[%clk 0:01:48.9]} 25... c5 {[%clk 0:00:30.1]} 26. Ra1 {[%clk 0:01:42.9]} 26...
f6 {[%clk 0:00:29.8]} 27. Ra4 {[%clk 0:01:37.7]} 27... Nf7 {[%clk 0:00:19.7]}
28. Rha1 {[%clk 0:01:35.6]} 28... Rxa4 {[%clk 0:00:20.2]} 29. Qxa4 {[%clk
0:01:30]} 29... Ne5 {[%clk 0:00:21.1]} 30. Bxe5 {[%clk 0:01:24.7]} 30... fxe5
{[%clk 0:00:22]} 31. b6 {[%clk 0:01:23.6]} 31... Qf6 {[%clk 0:00:20]} 32. Be2
{[%clk 0:01:16.4]} 32... Qf4+ {[%clk 0:00:20]} 33. Kg2 {[%clk 0:01:16.3]} 33...
Bxg4 {[%clk 0:00:19.4]} 34. Ra3 {[%clk 0:01:06.8]} 34... Qd2 {[%clk 0:00:11]}
35. Ra2 {[%clk 0:00:51.1]} 35... Bxf3+ {[%clk 0:00:10]} 36. Kh3 {[%clk
0:00:50.4]} 36... Qe1 {[%clk 0:00:08]} 37. Bxf3 {[%clk 0:00:48.9]} 37... Rxf3+
{[%clk 0:00:08.9]} 38. Kh2 {[%clk 0:00:42]} 38... Qg3+ {[%clk 0:00:09.8]} 39.
Kh1 {[%clk 0:00:41.6]} 39... Rf1# {[%clk 0:00:10.6]} 0-1

[Event "*** Titled Tuesday Blitz"]
[Site "Chess.com"]
[Date "2020.05.12"]
[Round "4"]
[White "jacky72"]
[Black "woodhy"]
[Result "1-0"]
[WhiteElo "2654"]
[BlackElo "2466"]
[TimeControl "180+1"]
[EndTime "10:38:36 PDT"]
[Termination "jacky72 won by checkmate"]

1. d4 {[%clk 0:03:00.9]} 1... Nf6 {[%clk 0:02:52.9]} 2. c4 {[%clk 0:03:00.6]}
2... e6 {[%clk 0:02:52.9]} 3. Nf3 {[%clk 0:03:00.6]} 3... b6 {[%clk 0:02:52.6]}
4. g3 {[%clk 0:03:00.3]} 4... Bb7 {[%clk 0:02:52.7]} 5. Bg2 {[%clk 0:03:00.6]}
5... Be7 {[%clk 0:02:53.3]} 6. O-O {[%clk 0:03:01.2]} 6... O-O {[%clk
0:02:53.5]} 7. Re1 {[%clk 0:03:02.1]} 7... Ne4 {[%clk 0:02:53.5]} 8. d5 {[%clk
0:02:59.2]} 8... f5 {[%clk 0:02:51.9]} 9. Nfd2 {[%clk 0:02:54.4]} 9... Nxd2
{[%clk 0:02:49.9]} 10. Qxd2 {[%clk 0:02:55.3]} 10... Qc8 {[%clk 0:02:48.9]} 11.
Nc3 {[%clk 0:02:49.8]} 11... Na6 {[%clk 0:02:48.7]} 12. b3 {[%clk 0:02:50.1]}
12... Nc5 {[%clk 0:02:48.6]} 13. Bb2 {[%clk 0:02:50.7]} 13... Bf6 {[%clk
0:02:49.1]} 14. e4 {[%clk 0:02:50]} 14... fxe4 {[%clk 0:02:47.9]} 15. Nxe4
{[%clk 0:02:50.9]} 15... Nxe4 {[%clk 0:02:47.8]} 16. Bxe4 {[%clk 0:02:49.9]}
16... Bxb2 {[%clk 0:02:47.5]} 17. Qxb2 {[%clk 0:02:50.4]} 17... exd5 {[%clk
0:02:47.8]} 18. cxd5 {[%clk 0:02:50.3]} 18... c5 {[%clk 0:02:43.3]} 19. Qc2
{[%clk 0:02:37.3]} 19... h6 {[%clk 0:02:38.1]} 20. Qe2 {[%clk 0:02:33.8]} 20...
Rf6 {[%clk 0:02:28.2]} 21. Qg4 {[%clk 0:02:27.1]} 21... d6 {[%clk 0:02:22.2]}
22. Qh5 {[%clk 0:02:20.1]} 22... Qf8 {[%clk 0:02:16.8]} 23. f4 {[%clk
0:02:19.2]} 23... Qf7 {[%clk 0:02:12.4]} 24. Qd1 {[%clk 0:02:09.5]} 24... Re8
{[%clk 0:02:06.3]} 25. Qd3 {[%clk 0:02:09.8]} 25... Re7 {[%clk 0:01:59.1]} 26.
Kf2 {[%clk 0:01:53.8]} 26... g5 {[%clk 0:01:50.9]} 27. f5 {[%clk 0:01:44.2]}
27... Rxe4 {[%clk 0:01:32.3]} 28. Qxe4 {[%clk 0:01:38.4]} 28... Rxf5+ {[%clk
0:01:31.1]} 29. Kg1 {[%clk 0:01:38.8]} 29... Re5 {[%clk 0:01:13.1]} 30. Qg4
{[%clk 0:01:31.7]} 30... Qxd5 {[%clk 0:01:07.1]} 31. Qc4 {[%clk 0:01:32.1]}
31... Rxe1+ {[%clk 0:00:33.8]} 32. Rxe1 {[%clk 0:01:30.1]} 32... Qxc4 {[%clk
0:00:34]} 33. bxc4 {[%clk 0:01:30]} 33... Kf7 {[%clk 0:00:34.9]} 34. Kf2 {[%clk
0:01:23.2]} 34... d5 {[%clk 0:00:32.9]} 35. cxd5 {[%clk 0:01:21.7]} 35... Bxd5
{[%clk 0:00:33.8]} 36. a3 {[%clk 0:01:17]} 36... Kf6 {[%clk 0:00:28.7]} 37. Re8
{[%clk 0:01:16.7]} 37... c4 {[%clk 0:00:22.7]} 38. Ke3 {[%clk 0:01:15.2]} 38...
b5 {[%clk 0:00:18.2]} 39. Kd4 {[%clk 0:01:14.9]} 39... Bg2 {[%clk 0:00:14.4]}
40. Rb8 {[%clk 0:01:08.7]} 40... a6 {[%clk 0:00:14.4]} 41. Rb6+ {[%clk
0:01:07.4]} 41... Kf5 {[%clk 0:00:14]} 42. Rxh6 {[%clk 0:01:03.5]} 42... Bb7
{[%clk 0:00:13.3]} 43. Rb6 {[%clk 0:00:57.9]} 43... Bc8 {[%clk 0:00:13.4]} 44.
Rc6 {[%clk 0:00:58]} 44... Bb7 {[%clk 0:00:13.5]} 45. Rc7 {[%clk 0:00:58.2]}
45... Bg2 {[%clk 0:00:11.3]} 46. Ra7 {[%clk 0:00:57.9]} 46... Kg4 {[%clk
0:00:11.7]} 47. Rxa6 {[%clk 0:00:55.7]} 47... Kh3 {[%clk 0:00:11.3]} 48. Rh6+
{[%clk 0:00:53.7]} 48... Kg4 {[%clk 0:00:11]} 49. Rb6 {[%clk 0:00:54.6]} 49...
Kh3 {[%clk 0:00:10.7]} 50. Rxb5 {[%clk 0:00:54.8]} 50... g4 {[%clk 0:00:10.5]}
51. Rh5# {[%clk 0:00:54.3]} 1-0